fUSD/lending_fUSD_20260621
["ID","MTS","AMOUNT","RATE_DAILY","PERIOD"]
[425929964,1782037855000,-500.0,0.00027671,2]
[425929957,1782037855000,-500.0,0.00027671,2]
[425929971,1782037855000,-500.0,0.00027671,2]
[425929970,1782037855000,-500.0,0.00027671,2]
[425929968,1782037855000,-500.0,0.00027671,2]
[425929969,1782037855000,-933.57,0.00027671,2]
[425929967,1782037855000,-500.0,0.00027671,2]
[425929978,1782037855000,-500.0,0.00027671,2]
[425929972,1782037855000,-500.0,0.00027671,2]
[425929979,1782037855000,-500.0,0.00027671,2]
[425929975,1782037855000,-500.0,0.00027671,2]
[425929974,1782037855000,-500.0,0.00027671,2]
[425929973,1782037855000,-500.0,0.00027671,2]
[425929976,1782037855000,-500.0,0.00027671,2]
[425929980,1782037855000,-541.83451493,0.00027671,2]
[425930014,1782037855000,-500.0,0.00027671,2]
[425930012,1782037855000,-819.6,0.00027671,2]
[425930008,1782037855000,-500.0,0.00027671,2]
[425930042,1782037855000,-500.0,0.00027671,2]
[425930045,1782037855000,-500.0,0.00027671,2]
[425930044,1782037855000,-500.0,0.00027671,2]
[425930046,1782037855000,-500.0,0.00027671,2]
[425930048,1782037855000,-533.80888956,0.00027671,2]
[425930047,1782037855000,-500.0,0.00027671,2]
[425930052,1782037855000,-426.45775323,0.00027671,2]
[425930049,1782037855000,-500.0,0.00027671,2]
[425930050,1782037855000,-500.0,0.00027671,2]
[425930051,1782037855000,-500.0,0.00027671,2]
[425930054,1782037855000,-500.0,0.00027671,2]
[425930057,1782037855000,-348.28376703,0.00027671,2]
[425930059,1782037855000,-500.0,0.00027671,2]
[425930056,1782037855000,-500.0,0.00027671,2]
[425930055,1782037855000,-500.0,0.00027671,2]
[425930063,1782037855000,-500.0,0.00027671,2]
[425930062,1782037855000,-533.50882742,0.00027671,2]
[425930061,1782037855000,-500.0,0.00027671,2]
[425930058,1782037855000,-196.08546417,0.00027671,2]
[425930064,1782037855000,-500.0,0.00027671,2]
[425930060,1782037855000,-500.0,0.00027671,2]
[425930066,1782037855000,-500.0,0.00027671,2]
[425930065,1782037855000,-526.65848438,0.00027671,2]
[425930069,1782037855000,-42571.055771,0.00027671,2]
[425930070,1782037855000,-1325.61,0.00027671,2]
[425930068,1782037855000,-500.0,0.00027671,2]
[425930071,1782037855000,-577.38606193,0.00027671,2]
[425930053,1782037855000,-500.0,0.00027671,2]
[425930043,1782037855000,-500.0,0.00027671,2]
[425930067,1782037855000,-500.0,0.00027671,2]
[425930037,1782037855000,-512.92,0.00027671,2]
[425930035,1782037855000,-500.0,0.00027671,2]
[425930010,1782037855000,-539.15,0.00027671,2]
[425930013,1782037855000,-500.0,0.00027671,2]
[425930017,1782037855000,-500.0,0.00027671,2]
[425930027,1782037855000,-500.0,0.00027671,2]
[425930028,1782037855000,-1143.85,0.00027671,2]
[425930016,1782037855000,-500.0,0.00027671,2]
[425930020,1782037855000,-500.0,0.00027671,2]
[425930019,1782037855000,-500.0,0.00027671,2]
[425930018,1782037855000,-500.0,0.00027671,2]
[425930025,1782037855000,-500.0,0.00027671,2]
[425930021,1782037855000,-500.0,0.00027671,2]
[425930024,1782037855000,-500.0,0.00027671,2]
[425930015,1782037855000,-188.03343347,0.00027671,2]
[425930022,1782037855000,-500.0,0.00027671,2]
[425930036,1782037855000,-500.0,0.00027671,2]
[425930034,1782037855000,-500.0,0.00027671,2]
[425930038,1782037855000,-606.45527132,0.00027671,2]
[425930041,1782037855000,-500.0,0.00027671,2]
[425930026,1782037855000,-500.0,0.00027671,2]
[425930033,1782037855000,-500.0,0.00027671,2]
[425930040,1782037855000,-500.0,0.00027671,2]
[425930039,1782037855000,-500.0,0.00027671,2]
[425930032,1782037855000,-500.0,0.00027671,2]
[425930031,1782037855000,-500.0,0.00027671,2]
[425930029,1782037855000,-500.0,0.00027671,2]
[425930023,1782037855000,-603.17677877,0.00027671,2]
[425930030,1782037855000,-500.0,0.00027671,2]
[425930111,1782037856000,-500.0,0.00027671,2]
[425930114,1782037856000,-500.0,0.00027671,2]
[425930112,1782037856000,-500.0,0.00027671,2]
[425930109,1782037856000,-500.0,0.00027671,2]
[425930100,1782037856000,-500.0,0.00027671,2]
[425930107,1782037856000,-500.0,0.00027671,2]
[425930104,1782037856000,-500.0,0.00027671,2]
[425930105,1782037856000,-500.0,0.00027671,2]
[425930102,1782037856000,-500.0,0.00027671,2]
[425930103,1782037856000,-500.0,0.00027671,2]
[425930106,1782037856000,-500.0,0.00027671,2]
[425930110,1782037856000,-760.72,0.00027671,2]
[425930120,1782037856000,-500.0,0.00027671,2]
[425930115,1782037856000,-791.91,0.00027671,2]
[425930116,1782037856000,-500.0,0.00027671,2]
[425930119,1782037856000,-500.0,0.00027671,2]
[425930117,1782037856000,-869.83,0.00027671,2]
[425930118,1782037856000,-493.53555432,0.00027671,2]
[425930133,1782037856000,-3841.84,0.00027671,2]
[425930122,1782037856000,-500.0,0.00027671,2]
[425930132,1782037856000,-500.0,0.00027671,2]
[425930121,1782037856000,-500.0,0.00027671,2]
[425930123,1782037856000,-1398.44,0.00027671,2]
[425930124,1782037856000,-500.0,0.00027671,2]
[425930097,1782037856000,-500.0,0.00027671,2]
[425930125,1782037856000,-500.0,0.00027671,2]
[425930113,1782037856000,-500.0,0.00027671,2]
[425930099,1782037856000,-500.0,0.00027671,2]
[425930084,1782037856000,-836.69,0.00027671,2]
[425930108,1782037856000,-500.0,0.00027671,2]
[425930131,1782037856000,-500.0,0.00027671,2]
[425930076,1782037856000,-500.0,0.00027671,2]
[425930072,1782037856000,-500.0,0.00027671,2]
[425930075,1782037856000,-500.0,0.00027671,2]
[425930074,1782037856000,-500.0,0.00027671,2]
[425930073,1782037856000,-500.0,0.00027671,2]
[425930077,1782037856000,-500.0,0.00027671,2]
[425930079,1782037856000,-592.99,0.00027671,2]
[425930081,1782037856000,-500.0,0.00027671,2]
[425930078,1782037856000,-500.0,0.00027671,2]
[425930080,1782037856000,-500.0,0.00027671,2]
[425930082,1782037856000,-500.0,0.00027671,2]
[425930101,1782037856000,-500.0,0.00027671,2]
[425930087,1782037856000,-500.0,0.00027671,2]
[425930083,1782037856000,-500.0,0.00027671,2]
[425930086,1782037856000,-500.0,0.00027671,2]
[425930089,1782037856000,-500.0,0.00027671,2]
[425930088,1782037856000,-590.33,0.00027671,2]
[425930090,1782037856000,-500.0,0.00027671,2]
[425930092,1782037856000,-500.0,0.00027671,2]
[425930091,1782037856000,-500.0,0.00027671,2]
[425930095,1782037856000,-500.0,0.00027671,2]
[425930093,1782037856000,-500.0,0.00027671,2]
[425930096,1782037856000,-500.0,0.00027671,2]
[425930094,1782037856000,-500.0,0.00027671,2]
[425930098,1782037856000,-500.0,0.00027671,2]
[425930085,1782037856000,-500.0,0.00027671,2]
[425930130,1782037856000,-515.73,0.00027671,2]
[425930145,1782037856000,-500.0,0.00027671,2]
[425930127,1782037856000,-500.0,0.00027671,2]
[425930163,1782037856000,-500.0,0.00027671,2]
[425930164,1782037856000,-500.0,0.00027671,2]
[425930166,1782037856000,-500.0,0.00027671,2]
[425930169,1782037856000,-958.6,0.00027671,2]
[425930168,1782037856000,-500.0,0.00027671,2]
[425930171,1782037856000,-500.0,0.00027671,2]
[425930165,1782037856000,-500.0,0.00027671,2]
[425930162,1782037856000,-1345.44,0.00027671,2]
[425930167,1782037856000,-1000.0,0.00027671,2]
[425930170,1782037856000,-500.0,0.00027671,2]
[425930174,1782037856000,-500.0,0.00027671,2]
[425930180,1782037856000,-500.0,0.00027671,2]
[425930161,1782037856000,-500.0,0.00027671,2]
[425930172,1782037856000,-500.0,0.00027671,2]
[425930178,1782037856000,-500.0,0.00027671,2]
[425930177,1782037856000,-500.0,0.00027671,2]
[425930173,1782037856000,-1205.38,0.00027671,2]
[425930175,1782037856000,-500.0,0.00027671,2]
[425930179,1782037856000,-500.0,0.00027671,2]
[425930181,1782037856000,-500.0,0.00027671,2]
[425930182,1782037856000,-608.71,0.00027671,2]
[425930189,1782037856000,-500.0,0.00027671,2]
[425930185,1782037856000,-500.0,0.00027671,2]
[425930186,1782037856000,-853.67,0.00027671,2]
[425930187,1782037856000,-471.4760649,0.00027671,2]
[425930184,1782037856000,-500.0,0.00027671,2]
[425930176,1782037856000,-500.0,0.00027671,2]
[425930154,1782037856000,-500.0,0.00027671,2]
[425930183,1782037856000,-151.76766203,0.00027671,2]
[425930152,1782037856000,-500.0,0.00027671,2]
[425930151,1782037856000,-500.0,0.00027671,2]
[425930129,1782037856000,-500.0,0.00027671,2]
[425930126,1782037856000,-500.0,0.00027671,2]
[425930134,1782037856000,-500.0,0.00027671,2]
[425930136,1782037856000,-500.0,0.00027671,2]
[425930140,1782037856000,-500.0,0.00027671,2]
[425930138,1782037856000,-536.52710487,0.00027671,2]
[425930137,1782037856000,-500.0,0.00027671,2]
[425930139,1782037856000,-2010.0,0.00027671,2]
[425930141,1782037856000,-500.0,0.00027671,2]
[425930142,1782037856000,-500.0,0.00027671,2]
[425930144,1782037856000,-500.0,0.00027671,2]
[425930188,1782037856000,-500.0,0.00027671,2]
[425930128,1782037856000,-500.0,0.00027671,2]
[425930146,1782037856000,-500.0,0.00027671,2]
[425930135,1782037856000,-530.00927069,0.00027671,2]
[425930153,1782037856000,-500.0,0.00027671,2]
[425930159,1782037856000,-757.98,0.00027671,2]
[425930149,1782037856000,-500.0,0.00027671,2]
[425930158,1782037856000,-500.0,0.00027671,2]
[425930147,1782037856000,-3292.77,0.00027671,2]
[425930150,1782037856000,-4255.92,0.00027671,2]
[425930157,1782037856000,-500.0,0.00027671,2]
[425930156,1782037856000,-1744.77,0.00027671,2]
[425930148,1782037856000,-500.0,0.00027671,2]
[425930143,1782037856000,-2086.7,0.00027671,2]
[425930160,1782037856000,-500.0,0.00027671,2]
[425930155,1782037856000,-5206.76,0.00027671,2]
[425930213,1782037857000,-500.0,0.00027671,2]
[425930226,1782037857000,-3344.59,0.00027671,2]
[425930212,1782037857000,-500.0,0.00027671,2]
[425930219,1782037857000,-500.0,0.00027671,2]
[425930218,1782037857000,-500.0,0.00027671,2]
[425930220,1782037857000,-500.0,0.00027671,2]
[425930222,1782037857000,-500.0,0.00027671,2]
[425930221,1782037857000,-500.0,0.00027671,2]
[425930223,1782037857000,-509.56,0.00027671,2]
[425930230,1782037857000,-500.0,0.00027671,2]
[425930227,1782037857000,-6285.21,0.00027671,2]
[425930224,1782037857000,-747.29,0.00027671,2]
[425930228,1782037857000,-500.0,0.00027671,2]
[425930229,1782037857000,-500.0,0.00027671,2]
[425930214,1782037857000,-500.0,0.00027671,2]
[425930231,1782037857000,-500.0,0.00027671,2]
[425930235,1782037857000,-500.0,0.00027671,2]
[425930233,1782037857000,-606.62,0.00027671,2]
[425930237,1782037857000,-500.0,0.00027671,2]
[425930232,1782037857000,-500.0,0.00027671,2]
[425930225,1782037857000,-500.0,0.00027671,2]
[425930215,1782037857000,-500.0,0.00027671,2]
[425930207,1782037857000,-320.78749321,0.00027671,2]
[425930216,1782037857000,-3874.02,0.00027671,2]
[425930239,1782037857000,-500.0,0.00027671,2]
[425930192,1782037857000,-606.08,0.00027671,2]
[425930191,1782037857000,-500.0,0.00027671,2]
[425930193,1782037857000,-584.87,0.00027671,2]
[425930190,1782037857000,-6740.75,0.00027671,2]
[425930195,1782037857000,-500.0,0.00027671,2]
[425930194,1782037857000,-4370.8,0.00027671,2]
[425930197,1782037857000,-500.0,0.00027671,2]
[425930196,1782037857000,-500.0,0.00027671,2]
[425930198,1782037857000,-500.0,0.00027671,2]
[425930206,1782037857000,-500.0,0.00027671,2]
[425930201,1782037857000,-863.82,0.00027671,2]
[425930204,1782037857000,-517.22218434,0.00027671,2]
[425930199,1782037857000,-4952.69,0.00027671,2]
[425930203,1782037857000,-736.37,0.00027671,2]
[425930202,1782037857000,-569.32161156,0.00027671,2]
[425930205,1782037857000,-500.0,0.00027671,2]
[425930208,1782037857000,-500.0,0.00027671,2]
[425930209,1782037857000,-500.0,0.00027671,2]
[425930211,1782037857000,-500.0,0.00027671,2]
[425930210,1782037857000,-500.0,0.00027671,2]
[425930217,1782037857000,-500.0,0.00027671,2]
[425930200,1782037857000,-500.0,0.00027671,2]
[425930236,1782037857000,-690.61,0.00027671,2]
[425930238,1782037857000,-351.99887679,0.00027671,2]
[425930262,1782037857000,-6938.43,0.00027671,2]
[425930264,1782037857000,-500.0,0.00027671,2]
[425930267,1782037857000,-746.08,0.00027671,2]
[425930270,1782037857000,-2630.75,0.00027671,2]
[425930269,1782037857000,-500.0,0.00027671,2]
[425930271,1782037857000,-500.0,0.00027671,2]
[425930268,1782037857000,-5735.18,0.00027671,2]
[425930278,1782037857000,-204.04145397,0.00027671,2]
[425930275,1782037857000,-500.0,0.00027671,2]
[425930266,1782037857000,-500.0,0.00027671,2]
[425930274,1782037857000,-500.0,0.00027671,2]
[425930279,1782037857000,-7097.95,0.00027671,2]
[425930277,1782037857000,-500.0,0.00027671,2]
[425930276,1782037857000,-8907.33,0.00027671,2]
[425930281,1782037857000,-500.0,0.00027671,2]
[425930280,1782037857000,-10103.93,0.00027671,2]
[425930282,1782037857000,-500.0,0.00027671,2]
[425930284,1782037857000,-500.0,0.00027671,2]
[425930283,1782037857000,-662.83,0.00027671,2]
[425930234,1782037857000,-6091.66,0.00027671,2]
[425930273,1782037857000,-560.49,0.00027671,2]
[425930265,1782037857000,-500.0,0.00027671,2]
[425930272,1782037857000,-4885.48,0.00027671,2]
[425930258,1782037857000,-500.0,0.00027671,2]
[425930251,1782037857000,-500.0,0.00027671,2]
[425930263,1782037857000,-500.0,0.00027671,2]
[425930241,1782037857000,-500.0,0.00027671,2]
[425930252,1782037857000,-896.49,0.00027671,2]
[425930244,1782037857000,-500.0,0.00027671,2]
[425930242,1782037857000,-9364.89,0.00027671,2]
[425930243,1782037857000,-5030.0,0.00027671,2]
[425930246,1782037857000,-500.0,0.00027671,2]
[425930247,1782037857000,-500.0,0.00027671,2]
[425930245,1782037857000,-500.0,0.00027671,2]
[425930240,1782037857000,-500.0,0.00027671,2]
[425930248,1782037857000,-500.0,0.00027671,2]
[425930250,1782037857000,-500.0,0.00027671,2]
[425930253,1782037857000,-500.0,0.00027671,2]
[425930255,1782037857000,-512.52646206,0.00027671,2]
[425930257,1782037857000,-6334.76,0.00027671,2]
[425930261,1782037857000,-500.0,0.00027671,2]
[425930259,1782037857000,-500.0,0.00027671,2]
[425930254,1782037857000,-500.0,0.00027671,2]
[425930249,1782037857000,-6679.24,0.00027671,2]
[425930260,1782037857000,-226.47610506,0.00027671,2]
[425930256,1782037857000,-500.0,0.00027671,2]
[425930325,1782037858000,-500.0,0.00027671,2]
[425930324,1782037858000,-500.0,0.00027671,2]
[425930319,1782037858000,-1073.5,0.00027671,2]
[425930321,1782037858000,-500.0,0.00027671,2]
[425930318,1782037858000,-922.78,0.00027671,2]
[425930317,1782037858000,-500.0,0.00027671,2]
[425930320,1782037858000,-500.0,0.00027671,2]
[425930322,1782037858000,-378.40534981,0.00027671,2]
[425930315,1782037858000,-3935.77,0.00027671,2]
[425930327,1782037858000,-500.0,0.00027671,2]
[425930316,1782037858000,-500.0,0.00027671,2]
[425930323,1782037858000,-1451.53,0.00027671,2]
[425930337,1782037858000,-500.0,0.00027671,2]
[425930335,1782037858000,-4485.52,0.00027671,2]
[425930330,1782037858000,-500.0,0.00027671,2]
[425930328,1782037858000,-500.0,0.00027671,2]
[425930329,1782037858000,-5836.17,0.00027671,2]
[425930331,1782037858000,-500.0,0.00027671,2]
[425930332,1782037858000,-500.0,0.00027671,2]
[425930334,1782037858000,-500.0,0.00027671,2]
[425930333,1782037858000,-302.85366902,0.00027671,2]
[425930336,1782037858000,-500.0,0.00027671,2]
[425930338,1782037858000,-500.0,0.00027671,2]
[425930343,1782037858000,-500.0,0.00027671,2]
[425930341,1782037858000,-730.93,0.00027671,2]
[425930313,1782037858000,-1301.74,0.00027671,2]
[425930326,1782037858000,-9999.22,0.00027671,2]
[425930308,1782037858000,-1180.04,0.00027671,2]
[425930290,1782037858000,-1501.04,0.00027671,2]
[425930307,1782037858000,-9528.18,0.00027671,2]
[425930340,1782037858000,-500.0,0.00027671,2]
[425930286,1782037858000,-13019.17,0.00027671,2]
[425930285,1782037858000,-500.0,0.00027671,2]
[425930287,1782037858000,-500.0,0.00027671,2]
[425930289,1782037858000,-500.0,0.00027671,2]
[425930288,1782037858000,-500.0,0.00027671,2]
[425930293,1782037858000,-1115.01,0.00027671,2]
[425930295,1782037858000,-500.0,0.00027671,2]
[425930291,1782037858000,-10443.29,0.00027671,2]
[425930296,1782037858000,-500.0,0.00027671,2]
[425930299,1782037858000,-500.0,0.00027671,2]
[425930297,1782037858000,-500.0,0.00027671,2]
[425930311,1782037858000,-542.78082286,0.00027671,2]
[425930300,1782037858000,-500.0,0.00027671,2]
[425930302,1782037858000,-4656.76,0.00027671,2]
[425930298,1782037858000,-500.0,0.00027671,2]
[425930292,1782037858000,-8253.82,0.00027671,2]
[425930301,1782037858000,-500.0,0.00027671,2]
[425930314,1782037858000,-500.0,0.00027671,2]
[425930304,1782037858000,-523.3,0.00027671,2]
[425930306,1782037858000,-500.0,0.00027671,2]
[425930303,1782037858000,-500.0,0.00027671,2]
[425930309,1782037858000,-7163.35,0.00027671,2]
[425930305,1782037858000,-165.47200439,0.00027671,2]
[425930310,1782037858000,-500.0,0.00027671,2]
[425930312,1782037858000,-500.0,0.00027671,2]
[425930294,1782037858000,-4071.99,0.00027671,2]
[425930347,1782037858000,-365.71409369,0.00027671,2]
[425930346,1782037858000,-869.85,0.00027671,2]
[425930344,1782037858000,-500.0,0.00027671,2]
[425930366,1782037858000,-500.0,0.00027671,2]
[425930377,1782037858000,-500.0,0.00027671,2]
[425930376,1782037858000,-500.0,0.00027671,2]
[425930385,1782037858000,-3846.12,0.00027671,2]
[425930380,1782037858000,-500.0,0.00027671,2]
[425930379,1782037858000,-500.0,0.00027671,2]
[425930378,1782037858000,-798.82,0.00027671,2]
[425930381,1782037858000,-359.91507559,0.00027671,2]
[425930383,1782037858000,-500.0,0.00027671,2]
[425930382,1782037858000,-3382.74,0.00027671,2]
[425930384,1782037858000,-500.0,0.00027671,2]
[425930389,1782037858000,-500.0,0.00027671,2]
[425930371,1782037858000,-6319.14,0.00027671,2]
[425930396,1782037858000,-500.0,0.00027671,2]
[425930395,1782037858000,-500.0,0.00027671,2]
[425930387,1782037858000,-500.0,0.00027671,2]
[425930391,1782037858000,-500.0,0.00027671,2]
[425930392,1782037858000,-1221.43,0.00027671,2]
[425930397,1782037858000,-500.0,0.00027671,2]
[425930390,1782037858000,-544.0540002,0.00027671,2]
[425930393,1782037858000,-500.0,0.00027671,2]
[425930394,1782037858000,-6386.84,0.00027671,2]
[425930399,1782037858000,-624.23,0.00027671,2]
[425930398,1782037858000,-8696.2,0.00027671,2]
[425930401,1782037858000,-4404.74,0.00027671,2]
[425930345,1782037858000,-500.0,0.00027671,2]
[425930388,1782037858000,-500.0,0.00027671,2]
[425930369,1782037858000,-500.0,0.00027671,2]
[425930386,1782037858000,-500.0,0.00027671,2]
[425930367,1782037858000,-8742.6,0.00027671,2]
[425930373,1782037858000,-521.32,0.00027671,2]
[425930342,1782037858000,-500.0,0.00027671,2]
[425930349,1782037858000,-500.0,0.00027671,2]
[425930339,1782037858000,-1479.66,0.00027671,2]
[425930348,1782037858000,-500.0,0.00027671,2]
[425930351,1782037858000,-3337.66,0.00027671,2]
[425930361,1782037858000,-500.0,0.00027671,2]
[425930362,1782037858000,-611.44,0.00027671,2]
[425930350,1782037858000,-5736.86,0.00027671,2]
[425930355,1782037858000,-9276.24,0.00027671,2]
[425930356,1782037858000,-7069.12,0.00027671,2]
[425930359,1782037858000,-7741.98,0.00027671,2]
[425930358,1782037858000,-656.66,0.00027671,2]
[425930400,1782037858000,-500.0,0.00027671,2]
[425930352,1782037858000,-500.0,0.00027671,2]
[425930353,1782037858000,-647.05102265,0.00027671,2]
[425930368,1782037858000,-500.0,0.00027671,2]
[425930370,1782037858000,-4906.25,0.00027671,2]
[425930372,1782037858000,-831.38,0.00027671,2]
[425930363,1782037858000,-500.0,0.00027671,2]
[425930375,1782037858000,-500.0,0.00027671,2]
[425930365,1782037858000,-500.0,0.00027671,2]
[425930364,1782037858000,-500.0,0.00027671,2]
[425930357,1782037858000,-500.0,0.00027671,2]
[425930354,1782037858000,-500.0,0.00027671,2]
[425930360,1782037858000,-500.0,0.00027671,2]
[425930374,1782037858000,-300.0,0.00027671,2]
[425930442,1782037859000,-500.0,0.00027671,2]
[425930443,1782037859000,-500.0,0.00027671,2]
[425930436,1782037859000,-500.0,0.00027671,2]
[425930433,1782037859000,-500.0,0.00027671,2]
[425930441,1782037859000,-6422.86,0.00027671,2]
[425930439,1782037859000,-500.0,0.00027671,2]
[425930434,1782037859000,-682.33,0.00027671,2]
[425930438,1782037859000,-500.0,0.00027671,2]
[425930435,1782037859000,-500.0,0.00027671,2]
[425930437,1782037859000,-500.0,0.00027671,2]
[425930445,1782037859000,-500.0,0.00027671,2]
[425930440,1782037859000,-4989.66,0.00027671,2]
[425930444,1782037859000,-500.0,0.00027671,2]
[425930449,1782037859000,-500.0,0.00027671,2]
[425930457,1782037859000,-500.0,0.00027671,2]
[425930456,1782037859000,-500.0,0.00027671,2]
[425930448,1782037859000,-500.0,0.00027671,2]
[425930458,1782037859000,-500.0,0.00027671,2]
[425930446,1782037859000,-515.17702085,0.00027671,2]
[425930452,1782037859000,-500.0,0.00027671,2]
[425930450,1782037859000,-500.0,0.00027671,2]
[425930455,1782037859000,-1027.88,0.00027671,2]
[425930451,1782037859000,-500.0,0.00027671,2]
[425930453,1782037859000,-500.0,0.00027671,2]
[425930454,1782037859000,-500.0,0.00027671,2]
[425930429,1782037859000,-500.0,0.00027671,2]
[425930447,1782037859000,-4065.24,0.00027671,2]
[425930428,1782037859000,-500.0,0.00027671,2]
[425930407,1782037859000,-500.0,0.00027671,2]
[425930430,1782037859000,-4316.99,0.00027671,2]
[425930459,1782037859000,-4764.69,0.00027671,2]
[425930404,1782037859000,-10625.36,0.00027671,2]
[425930403,1782037859000,-4194.76,0.00027671,2]
[425930406,1782037859000,-500.0,0.00027671,2]
[425930402,1782037859000,-578.26,0.00027671,2]
[425930405,1782037859000,-500.0,0.00027671,2]
[425930408,1782037859000,-500.0,0.00027671,2]
[425930409,1782037859000,-500.0,0.00027671,2]
[425930414,1782037859000,-500.0,0.00027671,2]
[425930413,1782037859000,-582.18,0.00027671,2]
[425930411,1782037859000,-650.62,0.00027671,2]
[425930419,1782037859000,-3267.69,0.00027671,2]
[425930416,1782037859000,-544.76256334,0.00027671,2]
[425930410,1782037859000,-567.55021714,0.00027671,2]
[425930417,1782037859000,-500.0,0.00027671,2]
[425930412,1782037859000,-500.0,0.00027671,2]
[425930418,1782037859000,-500.0,0.00027671,2]
[425930415,1782037859000,-1025.47,0.00027671,2]
[425930421,1782037859000,-500.0,0.00027671,2]
[425930432,1782037859000,-500.0,0.00027671,2]
[425930431,1782037859000,-500.0,0.00027671,2]
[425930420,1782037859000,-500.0,0.00027671,2]
[425930422,1782037859000,-500.0,0.00027671,2]
[425930424,1782037859000,-500.0,0.00027671,2]
[425930423,1782037859000,-500.0,0.00027671,2]
[425930425,1782037859000,-6815.25,0.00027671,2]
[425930427,1782037859000,-526.21,0.00027671,2]
[425930426,1782037859000,-8068.87,0.00027671,2]
[425930463,1782037859000,-500.0,0.00027671,2]
[425930460,1782037859000,-3597.01,0.00027671,2]
[425930504,1782037859000,-166.08,0.00027713,2]
[425930495,1782037859000,-500.0,0.00027671,2]
[425930491,1782037859000,-500.0,0.00027671,2]
[425930497,1782037859000,-5236.41,0.00027671,2]
[425930507,1782037859000,-500.0,0.00027944,2]
[425930499,1782037859000,-1231.38,0.00027675,2]
[425930500,1782037859000,-800.0,0.00027675,2]
[425930502,1782037859000,-9305.1718655,0.00027694,2]
[425930496,1782037859000,-860.38,0.00027671,2]
[425930498,1782037859000,-1938.82,0.00027675,2]
[425930503,1782037859000,-14573.2893316,0.00027712,2]
[425930506,1782037859000,-14573.2893316,0.00027882,2]
[425930505,1782037859000,-189.27,0.00027726,2]
[425930493,1782037859000,-500.0,0.00027671,2]
[425930508,1782037859000,-500.0,0.00027944,2]
[425930511,1782037859000,-644.98,0.00027944,2]
[425930509,1782037859000,-500.0,0.00027944,2]
[425930512,1782037859000,-500.0,0.00027944,2]
[425930514,1782037859000,-500.0,0.00027944,2]
[425930518,1782037859000,-3324.04,0.00027944,2]
[425930517,1782037859000,-5328.39,0.00027944,2]
[425930513,1782037859000,-500.0,0.00027944,2]
[425930516,1782037859000,-3766.43,0.00027944,2]
[425930519,1782037859000,-4510.31,0.00027944,2]
[425930515,1782037859000,-2151.96,0.00027944,2]
[425930521,1782037859000,-698.7,0.00027944,2]
[425930465,1782037859000,-500.0,0.00027671,2]
[425930510,1782037859000,-500.0,0.00027944,2]
[425930494,1782037859000,-3061.09,0.00027671,2]
[425930501,1782037859000,-220.25420691,0.0002768,2]
[425930490,1782037859000,-500.0,0.00027671,2]
[425930462,1782037859000,-500.0,0.00027671,2]
[425930464,1782037859000,-4040.17,0.00027671,2]